fUSD/lending_fUSD_20250930
["ID","MTS","AMOUNT","RATE_DAILY","PERIOD"]
[388590720,1759246324904,-5730.05,0.0002,2]
[388590721,1759246324914,-4862.57,0.0002,2]
[388590722,1759246324923,-1249.63,0.0002,2]
[388590723,1759246324933,-506.08,0.0002,2]
[388590724,1759246324942,-539.61274814,0.0002,2]
[388590725,1759246324952,-500.0,0.0002,2]
[388590726,1759246324962,-500.0,0.0002,2]
[388590727,1759246324972,-500.0,0.0002,2]
[388590728,1759246324982,-500.0,0.0002,2]
[388590729,1759246324992,-603.94,0.0002,2]
[388590730,1759246325002,-500.0,0.0002,2]
[388590731,1759246325012,-500.0,0.0002,2]
[388590732,1759246325022,-500.0,0.0002,2]
[388590733,1759246325032,-500.0,0.0002,2]
[388590734,1759246325042,-4198.69,0.0002,2]
[388590735,1759246325052,-2440.56,0.0002,2]
[388590736,1759246325062,-1238.43,0.0002,2]
[388590737,1759246325072,-500.0,0.0002,2]
[388590738,1759246325082,-500.0,0.0002,2]
[388590739,1759246325092,-521.82,0.0002,2]
[388590740,1759246325102,-5000.0,0.0002001,2]
[388590741,1759246325112,-750.14216786,0.00020021,2]
[388590742,1759246325124,-1000.0,0.00020021,2]
[388590743,1759246325134,-1000.0,0.00020021,2]
[388590744,1759246325144,-1000.0,0.00020021,2]
[388590745,1759246325154,-755.28457453,0.00020021,2]
[388590746,1759246325164,-1000.0,0.00020021,2]
[388590747,1759246325175,-727.19481272,0.00020027,2]
[388590748,1759246325185,-264.91,0.00020028,2]
[388590749,1759246325195,-164.23,0.00020036,2]
[388590750,1759246325205,-255.6372,0.0002005,2]
[388590751,1759246325215,-5000.0,0.00020079,2]
[388590752,1759246325226,-727.19481272,0.00020082,2]
[388590753,1759246325237,-151.0,0.00020098,2]
[388590754,1759246325247,-200.0,0.000201,2]
[388590755,1759246325258,-248.71531821,0.00020133,2]
[388590756,1759246325268,-459.71170162,0.00020134,2]
[388590757,1759246325278,-999.99,0.00020145,2]
[388590758,1759246325288,-7842.33,0.00020145,2]
[388590759,1759246325298,-150.99,0.00020145,2]
[388590760,1759246325308,-2943.99,0.00020159,2]
[388590761,1759246325318,-727.19481272,0.00020164,2]
[388590762,1759246325329,-163.50568847,0.00020173,2]
[388590763,1759246325342,-1000.0,0.00020199,2]
[388590764,1759246325352,-214.0,0.000202,2]
[388590765,1759246325362,-1901.48234373,0.000202,2]
[388590766,1759246325373,-151.32362036,0.00020201,2]
[388590767,1759246325383,-204.5746551,0.00020201,2]
[388590768,1759246325394,-500.0,0.00020218,2]
[388590769,1759246325405,-1300.0,0.00020224,2]
[388590770,1759246325416,-727.19481272,0.00020247,2]
[388590771,1759246325426,-3490.76848164,0.00020256,2]
[388590772,1759246325436,-1500.0,0.00020268,2]
[388590773,1759246325446,-1500.0,0.00020268,2]
[388590774,1759246325456,-266.46551295,0.00020268,2]
[388590775,1759246325466,-1500.0,0.00020268,2]
[388590776,1759246325476,-1500.0,0.00020268,2]
[388590777,1759246325485,-329.41569127,0.00020268,2]
[388590778,1759246325496,-1500.0,0.00020268,2]
[388590779,1759246325506,-1355.72361662,0.00020268,2]
[388590780,1759246325517,-709.3592731,0.00020268,2]
[388590781,1759246325527,-1500.0,0.00020268,2]
[388590782,1759246325538,-1500.0,0.00020268,2]
[388590783,1759246325548,-150.0,0.00020273,2]
[388590784,1759246325558,-500.0,0.00020273,2]
[388590785,1759246325568,-500.0,0.00020273,2]
[388590786,1759246325578,-500.0,0.00020273,2]
[388590787,1759246325589,-500.0,0.00020273,2]
[388590788,1759246325599,-500.0,0.00020273,2]
[388590789,1759246325610,-768.69,0.00020273,2]
[388590790,1759246325621,-500.0,0.00020273,2]
[388590791,1759246325632,-1089.04,0.00020273,2]
[388590792,1759246325642,-500.0,0.00020273,2]
[388590793,1759246325653,-500.0,0.00020273,2]
[388590794,1759246325663,-506.48,0.00020273,2]
[388590795,1759246325675,-698.3,0.00020273,2]
[388590796,1759246325687,-500.0,0.00020273,2]
[388590797,1759246325698,-500.0,0.00020273,2]
[388590798,1759246325707,-500.0,0.00020273,2]
[388590799,1759246325717,-469.22086321,0.00020273,2]
[388590800,1759246325727,-500.0,0.00020273,2]
[388590801,1759246325738,-500.0,0.00020273,2]
[388590802,1759246325747,-500.0,0.00020273,2]
[388590803,1759246325757,-195.43829882,0.00020273,2]
[388590804,1759246325766,-2267.6,0.00020273,2]
[388590805,1759246325776,-923.86,0.00020273,2]
[388590806,1759246325785,-500.0,0.00020273,2]
[388590807,1759246325795,-500.0,0.00020273,2]
[388590808,1759246325805,-1027.62,0.00020273,2]
[388590809,1759246325815,-500.0,0.00020273,2]
[388590810,1759246325825,-810.74,0.00020273,2]
[388590811,1759246325835,-500.0,0.00020273,2]
[388590812,1759246325844,-500.0,0.00020273,2]
[388590813,1759246325854,-1823.59,0.00020273,2]
[388590814,1759246325865,-500.0,0.00020273,2]
[388590815,1759246325875,-500.0,0.00020273,2]
[388590816,1759246325885,-1066.14,0.00020273,2]
[388590817,1759246325895,-500.0,0.00020273,2]
[388590818,1759246325904,-2606.43,0.00020273,2]
[388590819,1759246325914,-1171.66,0.00020273,2]
[388590820,1759246325923,-735.97,0.00020273,2]
[388590821,1759246325933,-1812.14,0.00020273,2]
[388590822,1759246325943,-1551.99,0.00020273,2]
[388590823,1759246325953,-500.0,0.00020273,2]
[388590824,1759246325963,-500.0,0.00020273,2]
[388590825,1759246325972,-1192.17,0.00020273,2]
[388590826,1759246325981,-500.0,0.00020273,2]
[388590827,1759246325990,-504.89,0.00020273,2]
[388590828,1759246326000,-500.0,0.00020273,2]
[388590829,1759246326011,-733.15,0.00020273,2]
[388590830,1759246326021,-1722.5,0.00020273,2]
[388590831,1759246326031,-1211.39,0.00020273,2]
[388590832,1759246326040,-3016.63,0.00020273,2]
[388590833,1759246326050,-500.0,0.00020273,2]
[388590834,1759246326060,-623.5,0.00020273,2]
[388590835,1759246326070,-588.19,0.00020273,2]
[388590836,1759246326080,-500.0,0.00020273,2]
[388590837,1759246326090,-500.0,0.00020273,2]
[388590838,1759246326100,-500.0,0.00020273,2]
[388590839,1759246326110,-2482.32,0.00020273,2]
[388590840,1759246326119,-2484.52,0.00020273,2]
[388590841,1759246326130,-500.0,0.00020273,2]
[388590842,1759246326140,-500.0,0.00020273,2]
[388590843,1759246326149,-1090.7,0.00020273,2]
[388590844,1759246326159,-500.0,0.00020273,2]
[388590845,1759246326168,-785.77,0.00020273,2]
[388590846,1759246326178,-1062.55,0.00020273,2]
[388590847,1759246326187,-1331.02,0.00020273,2]
[388590848,1759246326196,-589.91,0.00020273,2]
[388590849,1759246326206,-931.97,0.00020273,2]
[388590850,1759246326217,-1563.28,0.00020273,2]
[388590851,1759246326226,-500.0,0.00020273,2]
[388590852,1759246326236,-500.0,0.00020273,2]
[388590853,1759246326245,-915.49,0.00020273,2]
[388590854,1759246326255,-1552.5,0.00020273,2]
[388590855,1759246326264,-532.13,0.00020273,2]
[388590856,1759246326274,-500.0,0.00020273,2]
[388590857,1759246326286,-691.66,0.00020273,2]
[388590858,1759246326296,-3039.3,0.00020273,2]
[388590859,1759246326308,-500.0,0.00020273,2]
[388590860,1759246326318,-536.23,0.00020273,2]
[388590861,1759246326328,-1159.91,0.00020273,2]
[388590862,1759246326342,-500.0,0.00020273,2]
[388590863,1759246326352,-957.39,0.00020273,2]
[388590864,1759246326362,-1491.93,0.00020273,2]
[388590865,1759246326372,-500.0,0.00020273,2]
[388590866,1759246326381,-500.0,0.00020273,2]
[388590867,1759246326391,-990.94,0.00020273,2]
[388590868,1759246326400,-2050.13,0.00020273,2]
[388590869,1759246326410,-766.29,0.00020273,2]
[388590870,1759246326419,-974.35,0.00020273,2]
[388590871,1759246326429,-1361.8,0.00020273,2]
[388590872,1759246326438,-500.0,0.00020273,2]
[388590873,1759246326448,-1464.06,0.00020273,2]
[388590874,1759246326458,-591.03,0.00020273,2]
[388590875,1759246326467,-500.0,0.00020273,2]
[388590876,1759246326477,-1237.4,0.00020273,2]
[388590877,1759246326486,-651.05,0.00020273,2]
[388590878,1759246326496,-849.98,0.00020273,2]
[388590879,1759246326506,-500.0,0.00020273,2]
[388590880,1759246326516,-1053.26,0.00020273,2]
[388590881,1759246326526,-1260.21,0.00020273,2]
[388590882,1759246326535,-911.31,0.00020273,2]
[388590883,1759246326545,-1356.79,0.00020273,2]
[388590884,1759246326554,-839.62,0.00020273,2]
[388590885,1759246326563,-634.32,0.00020273,2]
[388590886,1759246326574,-2093.53,0.00020273,2]
[388590887,1759246326584,-2064.48,0.00020273,2]
[388590888,1759246326594,-1220.16,0.00020273,2]
[388590889,1759246326604,-551.82,0.00020273,2]
[388590890,1759246326614,-1627.3,0.00020273,2]
[388590891,1759246326624,-502.24,0.00020273,2]
[388590892,1759246326634,-2828.43,0.00020273,2]
[388590893,1759246326644,-545.19,0.00020273,2]
[388590894,1759246326654,-1923.04,0.00020273,2]
[388590895,1759246326664,-658.59,0.00020273,2]
[388590896,1759246326673,-500.0,0.00020273,2]
[388590897,1759246326682,-2567.03,0.00020273,2]
[388590898,1759246326692,-500.0,0.00020273,2]
[388590899,1759246326702,-500.0,0.00020273,2]
[388590900,1759246326712,-500.0,0.00020273,2]
[388590901,1759246326721,-500.0,0.00020273,2]
[388590902,1759246326730,-622.44,0.00020273,2]
[388590903,1759246326740,-503.48,0.00020273,2]
[388590904,1759246326750,-979.69,0.00020273,2]
[388590905,1759246326759,-2523.33,0.00020273,2]
[388590906,1759246326769,-500.0,0.00020273,2]
[388590907,1759246326778,-500.0,0.00020273,2]
[388590908,1759246326787,-527.54,0.00020273,2]
[388590909,1759246326797,-1101.17,0.00020273,2]
[388590910,1759246326807,-708.18,0.00020273,2]
[388590911,1759246326816,-500.0,0.00020273,2]
[388590912,1759246326826,-566.74,0.00020273,2]
[388590913,1759246326836,-500.0,0.00020273,2]
[388590914,1759246326845,-500.0,0.00020273,2]
[388590915,1759246326854,-500.0,0.00020273,2]
[388590916,1759246326864,-1598.66,0.00020273,2]
[388590917,1759246326874,-2111.09,0.00020273,2]
[388590918,1759246326884,-500.0,0.00020273,2]
[388590919,1759246326994,-500.0,0.00020273,2]
[388590920,1759246327004,-1769.98,0.00020273,2]
[388590921,1759246327013,-500.0,0.00020273,2]
[388590922,1759246327023,-679.95,0.00020273,2]
[388590923,1759246327032,-500.0,0.00020273,2]
[388590924,1759246327041,-2253.64,0.00020273,2]
[388590925,1759246327050,-500.0,0.00020273,2]
[388590926,1759246327059,-500.0,0.00020273,2]
[388590927,1759246327068,-500.0,0.00020273,2]
[388590928,1759246327078,-1217.33,0.00020273,2]
[388590929,1759246327087,-500.0,0.00020273,2]
[388590930,1759246327096,-3100.45,0.00020273,2]
[388590931,1759246327107,-500.0,0.00020273,2]
[388590932,1759246327116,-940.16,0.00020273,2]
[388590933,1759246327126,-569.92,0.00020273,2]
[388590934,1759246327135,-500.0,0.00020273,2]
[388590935,1759246327145,-581.28,0.00020273,2]
[388590936,1759246327154,-500.0,0.00020273,2]
[388590937,1759246327163,-298.93278116,0.00020273,2]
[388590938,1759246327172,-500.0,0.00020273,2]
[388590939,1759246327182,-972.17,0.00020273,2]
[388590940,1759246327191,-698.15,0.00020273,2]
[388590941,1759246327200,-500.0,0.00020273,2]
[388590942,1759246327210,-638.41,0.00020273,2]
[388590943,1759246327219,-500.0,0.00020273,2]
[388590944,1759246327228,-500.0,0.00020273,2]
[388590945,1759246327237,-561.94,0.00020273,2]
[388590946,1759246327247,-500.0,0.00020273,2]
[388590947,1759246327257,-500.0,0.00020273,2]
[388590948,1759246327267,-1421.91,0.00020273,2]
[388590949,1759246327276,-500.0,0.00020273,2]
[388590950,1759246327286,-2562.95,0.00020273,2]
[388590951,1759246327295,-975.88,0.00020273,2]
[388590952,1759246327304,-577.19,0.00020273,2]
[388590953,1759246327313,-500.0,0.00020273,2]
[388590954,1759246327322,-1372.88,0.00020273,2]
[388590955,1759246327331,-500.0,0.00020273,2]
[388590956,1759246327346,-500.0,0.00020273,2]
[388590957,1759246327355,-537.46,0.00020273,2]
[388590958,1759246327364,-500.0,0.00020273,2]
[388590959,1759246327374,-500.0,0.00020273,2]
[388590960,1759246327385,-733.33,0.00020273,2]
[388590961,1759246327394,-500.0,0.00020273,2]
[388590962,1759246327404,-500.0,0.00020273,2]
[388590963,1759246327414,-505.42,0.00020273,2]
[388590964,1759246327423,-1552.86,0.00020273,2]
[388590965,1759246327433,-500.0,0.00020273,2]
[388590966,1759246327441,-500.0,0.00020273,2]
[388590967,1759246327451,-1466.12,0.00020273,2]
[388590968,1759246327460,-500.0,0.00020273,2]
[388590969,1759246327469,-500.0,0.00020273,2]
[388590970,1759246327479,-500.0,0.00020273,2]
[388590971,1759246327488,-1664.54,0.00020273,2]
[388590972,1759246327496,-562.58,0.00020273,2]
[388590973,1759246327506,-560.22,0.00020273,2]
[388590974,1759246327516,-741.9,0.00020273,2]
[388590975,1759246327525,-1053.34,0.00020273,2]
[388590976,1759246327535,-500.0,0.00020273,2]
[388590977,1759246327544,-1625.1,0.00020273,2]
[388590978,1759246327552,-500.0,0.00020273,2]
[388590979,1759246327561,-771.68,0.00020273,2]
[388590980,1759246327570,-500.0,0.00020273,2]
[388590981,1759246327580,-500.0,0.00020273,2]
[388590982,1759246327590,-500.0,0.00020273,2]
[388590983,1759246327600,-500.0,0.00020273,2]
[388590984,1759246327610,-1475.07,0.00020273,2]
[388590985,1759246327619,-500.0,0.00020273,2]
[388590986,1759246327629,-500.0,0.00020273,2]
[388590987,1759246327639,-500.0,0.00020273,2]
[388590988,1759246327648,-1127.64,0.00020273,2]
[388590989,1759246327659,-816.76,0.00020273,2]
[388590990,1759246327669,-517.86,0.00020273,2]
[388590991,1759246327679,-500.0,0.00020273,2]
[388590992,1759246327688,-500.0,0.00020273,2]
[388590993,1759246327698,-500.0,0.00020273,2]
[388590994,1759246327708,-294.76104173,0.00020273,2]
[388590995,1759246327718,-1578.89,0.00020273,2]
[388590996,1759246327727,-975.31,0.00020273,2]
[388590997,1759246327736,-500.0,0.00020273,2]
[388590998,1759246327745,-500.0,0.00020273,2]
[388590999,1759246327754,-500.0,0.00020273,2]
[388591000,1759246327763,-500.0,0.00020273,2]
[388591001,1759246327772,-795.3,0.00020273,2]
[388591002,1759246327781,-500.0,0.00020273,2]
[388591003,1759246327790,-831.43,0.00020273,2]
[388591004,1759246327799,-500.0,0.00020273,2]
[388591005,1759246327809,-500.0,0.00020273,2]
[388591006,1759246327818,-508.93,0.00020273,2]
[388591007,1759246327827,-1605.51,0.00020273,2]
[388591008,1759246327836,-2124.82,0.00020273,2]
[388591009,1759246327846,-814.65,0.00020273,2]
[388591010,1759246327855,-746.76,0.00020273,2]
[388591011,1759246327865,-500.0,0.00020273,2]
[388591012,1759246327876,-500.0,0.00020273,2]
[388591013,1759246327885,-453.28364622,0.00020273,2]
[388591014,1759246327895,-755.79,0.00020273,2]
[388591015,1759246327904,-500.0,0.00020273,2]
[388591016,1759246327914,-772.99,0.00020273,2]
[388591017,1759246327923,-500.0,0.00020273,2]
[388591018,1759246327934,-2954.2,0.00020273,2]
[388591019,1759246327943,-1914.74,0.00020273,2]
[388591020,1759246327953,-2315.03,0.00020273,2]
[388591021,1759246327963,-1158.5,0.00020273,2]
[388591022,1759246327973,-500.0,0.00020273,2]
[388591023,1759246327982,-460.0,0.00020273,2]
[388591024,1759246327992,-748.78,0.00020273,2]
[388591025,1759246328001,-202.6893724,0.00020273,2]
[388591026,1759246328011,-873.41,0.00020273,2]
[388591027,1759246328020,-1444.18,0.00020273,2]
[388591028,1759246328030,-500.0,0.00020273,2]
[388591029,1759246328040,-500.0,0.00020273,2]
[388591030,1759246328049,-500.0,0.00020273,2]
[388591031,1759246328059,-1278.36,0.00020273,2]
[388591032,1759246328069,-856.51,0.00020273,2]
[388591033,1759246328078,-500.0,0.00020273,2]
[388591034,1759246328088,-512.95,0.00020273,2]
[388591035,1759246328097,-1123.83,0.00020273,2]
[388591036,1759246328107,-500.0,0.00020273,2]
[388591037,1759246328117,-3067.31,0.00020273,2]
[388591038,1759246328129,-500.0,0.00020273,2]
[388591039,1759246328139,-500.0,0.00020273,2]
[388591040,1759246328148,-500.0,0.00020273,2]
[388591041,1759246328157,-790.11,0.00020273,2]
[388591042,1759246328167,-500.0,0.00020273,2]
[388591043,1759246328176,-1074.86,0.00020273,2]
[388591044,1759246328185,-500.0,0.00020273,2]
[388591045,1759246328195,-743.02,0.00020273,2]
[388591046,1759246328204,-500.0,0.00020273,2]
[388591047,1759246328214,-2639.35,0.00020273,2]
[388591048,1759246328224,-500.0,0.00020273,2]
[388591049,1759246328234,-500.0,0.00020273,2]
[388591050,1759246328244,-500.0,0.00020273,2]
[388591051,1759246328254,-603.37,0.00020273,2]
[388591052,1759246328263,-2515.31,0.00020273,2]
[388591053,1759246328272,-500.0,0.00020273,2]
[388591054,1759246328282,-500.0,0.00020273,2]
[388591055,1759246328291,-500.0,0.00020273,2]
[388591056,1759246328302,-1424.54,0.00020273,2]
[388591057,1759246328312,-629.69,0.00020273,2]
[388591058,1759246328322,-500.0,0.00020273,2]
[388591059,1759246328335,-500.0,0.00020273,2]
[388591060,1759246328346,-1515.2,0.00020273,2]
[388591061,1759246328355,-2490.07,0.00020273,2]
[388591062,1759246328365,-500.0,0.00020273,2]
[388591063,1759246328375,-509.34,0.00020273,2]
[388591064,1759246328384,-500.0,0.00020273,2]
[388591065,1759246328394,-565.6,0.00020273,2]
[388591066,1759246328403,-500.0,0.00020273,2]
[388591067,1759246328412,-500.0,0.00020273,2]
[388591068,1759246328421,-666.34,0.00020273,2]
[388591069,1759246328431,-544.49,0.00020273,2]
[388591070,1759246328440,-500.0,0.00020273,2]
[388591071,1759246328449,-685.3,0.00020273,2]
[388591072,1759246328459,-500.0,0.00020273,2]
[388591073,1759246328468,-500.0,0.00020273,2]
[388591074,1759246328477,-500.0,0.00020273,2]
[388591075,1759246328486,-635.9750291,0.00020273,2]
[388591076,1759246328495,-500.0,0.00020273,2]
[388591077,1759246328504,-500.0,0.00020273,2]
[388591078,1759246328513,-500.0,0.00020273,2]
[388591079,1759246328522,-500.0,0.00020273,2]
[388591080,1759246328531,-856.76,0.00020273,2]
[388591081,1759246328541,-784.99,0.00020273,2]
[388591082,1759246328550,-500.0,0.00020273,2]
[388591083,1759246328559,-500.0,0.00020273,2]
[388591084,1759246328569,-500.0,0.00020273,2]
[388591085,1759246328578,-500.0,0.00020273,2]
[388591086,1759246328587,-4857.1,0.00020273,2]
[388591087,1759246328596,-2587.65,0.00020273,2]
[388591088,1759246328606,-1000.84,0.00020273,2]
[388591089,1759246328615,-500.0,0.00020273,2]
[388591090,1759246328628,-500.0,0.00020273,2]
[388591091,1759246328638,-500.0,0.00020273,2]
[388591092,1759246328648,-500.0,0.00020273,2]
[388591093,1759246328658,-955.87,0.00020273,2]
[388591094,1759246328668,-500.0,0.00020273,2]
[388591095,1759246328678,-620.53,0.00020273,2]
[388591096,1759246328687,-500.0,0.00020273,2]
[388591097,1759246328697,-1236.64,0.00020273,2]
[388591098,1759246328706,-500.0,0.00020273,2]
[388591099,1759246328716,-500.0,0.00020273,2]
[388591100,1759246328726,-500.0,0.00020273,2]
[388591101,1759246328736,-266.85620821,0.00020273,2]
[388591102,1759246328745,-1720.79,0.00020273,2]
[388591103,1759246328756,-2263.53,0.00020273,2]
[388591104,1759246328772,-500.0,0.00020273,2]
[388591105,1759246328782,-500.0,0.00020273,2]
[388591106,1759246328791,-1017.47,0.00020273,2]
[388591107,1759246328801,-500.0,0.00020273,2]
[388591108,1759246328810,-413.96867044,0.00020273,2]
[388591109,1759246328820,-500.0,0.00020273,2]
[388591110,1759246328829,-642.86,0.00020273,2]
[388591111,1759246328839,-500.0,0.00020273,2]
[388591112,1759246328848,-2291.89,0.00020273,2]
[388591113,1759246328858,-500.0,0.00020273,2]
[388591114,1759246328868,-918.34,0.00020273,2]
[388591115,1759246328879,-2740.65,0.00020273,2]
[388591116,1759246328889,-876.15,0.00020273,2]
[388591117,1759246328898,-5036.26,0.00020273,2]
[388591118,1759246328907,-500.0,0.00020273,2]
[388591119,1759246328916,-1702.84,0.00020273,2]
[388591120,1759246328926,-583.7,0.00020273,2]
[388591121,1759246328935,-3972.16,0.00020273,2]
[388591122,1759246328944,-711.31,0.00020273,2]
[388591123,1759246328954,-1715.56,0.00020273,2]
[388591124,1759246328963,-500.0,0.00020273,2]
[388591125,1759246328972,-500.0,0.00020273,2]
[388591126,1759246328981,-838.69,0.00020273,2]
[388591127,1759246328991,-795.93,0.00020273,2]
[388591128,1759246329000,-3407.7,0.00020273,2]
[388591129,1759246329009,-1305.49,0.00020273,2]
[388591130,1759246329018,-1105.85,0.00020273,2]
[388591131,1759246329027,-500.0,0.00020273,2]
[388591132,1759246329037,-500.0,0.00020273,2]
[388591133,1759246329047,-1298.46,0.00020273,2]
[388591134,1759246329056,-576.52,0.00020273,2]
[388591135,1759246329069,-170.42727205,0.00020273,2]
[388591136,1759246329079,-894.0,0.00020273,2]
[388591137,1759246329088,-665.23,0.00020273,2]
[388591138,1759246329097,-1958.71,0.00020273,2]
[388591139,1759246329106,-1197.44,0.00020273,2]
[388591140,1759246329116,-500.0,0.00020273,2]
[388591141,1759246329126,-500.0,0.00020273,2]
[388591142,1759246329136,-500.0,0.00020273,2]
[388591143,1759246329146,-507.83,0.00020273,2]
[388591144,1759246329156,-500.0,0.00020273,2]
[388591145,1759246329165,-500.0,0.00020273,2]
[388591146,1759246329175,-500.0,0.00020273,2]
[388591147,1759246329184,-500.0,0.00020273,2]
[388591148,1759246329193,-600.48,0.00020273,2]
[388591149,1759246329203,-500.0,0.00020273,2]
[388591150,1759246329212,-798.63,0.00020273,2]
[388591151,1759246329222,-1205.22,0.00020273,2]
[388591152,1759246329231,-1348.57,0.00020273,2]
[388591153,1759246329241,-572.59,0.00020273,2]
[388591154,1759246329251,-500.0,0.00020273,2]
[388591155,1759246329261,-1363.77,0.00020273,2]
[388591156,1759246329270,-4476.81,0.00020273,2]
[388591157,1759246329279,-672.17,0.00020273,2]
[388591158,1759246329289,-494.29741488,0.00020273,2]
[388591159,1759246329298,-1570.81,0.00020273,2]
[388591160,1759246329308,-1083.55,0.00020273,2]
[388591161,1759246329318,-500.0,0.00020273,2]
[388591162,1759246329328,-500.0,0.00020273,2]
[388591163,1759246329341,-500.0,0.00020273,2]
[388591164,1759246329351,-1413.1,0.00020273,2]
[388591165,1759246329361,-500.0,0.00020273,2]
[388591166,1759246329371,-500.0,0.00020273,2]
[388591167,1759246329381,-1559.28,0.00020273,2]
[388591168,1759246329390,-1252.09,0.00020273,2]
[388591169,1759246329400,-500.0,0.00020273,2]
[388591170,1759246329409,-233.34263638,0.00020273,2]
[388591171,1759246329419,-500.0,0.00020273,2]
[388591172,1759246329428,-500.0,0.00020273,2]
[388591173,1759246329438,-2063.17,0.00020273,2]
[388591174,1759246329448,-882.83,0.00020273,2]
[388591175,1759246329458,-500.0,0.00020273,2]
[388591176,1759246329467,-500.0,0.00020273,2]
[388591177,1759246329478,-2665.26,0.00020273,2]
[388591178,1759246329487,-1563.72,0.00020273,2]
[388591179,1759246329496,-500.0,0.00020273,2]
[388591180,1759246329507,-500.0,0.00020273,2]
[388591181,1759246329516,-500.0,0.00020273,2]
[388591182,1759246329526,-583.08,0.00020273,2]
[388591183,1759246329535,-500.0,0.00020273,2]
[388591184,1759246329544,-837.59,0.00020273,2]
[388591185,1759246329553,-934.85,0.00020273,2]
[388591186,1759246329562,-3090.82,0.00020273,2]
[388591187,1759246329571,-500.0,0.00020273,2]
[388591188,1759246329581,-1262.19,0.00020273,2]
[388591189,1759246329591,-4877.12,0.00020273,2]
[388591190,1759246329600,-500.0,0.00020273,2]
[388591191,1759246329610,-165.83053096,0.00020273,2]
[388591192,1759246329619,-968.06,0.00020273,2]
[388591193,1759246329632,-500.0,0.00020273,2]
[388591194,1759246329642,-933.84,0.00020273,2]
[388591195,1759246329651,-1063.83,0.00020273,2]
[388591196,1759246329661,-1380.92,0.00020273,2]
[388591197,1759246329671,-500.0,0.00020273,2]
[388591198,1759246329681,-500.0,0.00020273,2]
[388591199,1759246329691,-500.0,0.00020273,2]
[388591200,1759246329701,-1653.6,0.00020273,2]
[388591201,1759246329710,-500.0,0.00020273,2]
[388591202,1759246329720,-500.0,0.00020273,2]
[388591203,1759246329729,-904.06,0.00020273,2]
[388591204,1759246329740,-500.0,0.00020273,2]
[388591205,1759246329750,-500.0,0.00020273,2]
[388591206,1759246329762,-888.74,0.00020273,2]
[388591207,1759246329772,-500.0,0.00020273,2]
[388591208,1759246329781,-901.55,0.00020273,2]
[388591209,1759246329791,-500.0,0.00020273,2]
[388591210,1759246329800,-523.29,0.00020273,2]
[388591211,1759246329810,-1069.66,0.00020273,2]
[388591212,1759246329819,-500.0,0.00020273,2]
[388591213,1759246329828,-1738.73,0.00020273,2]
[388591214,1759246329838,-500.0,0.00020273,2]
[388591215,1759246329847,-500.0,0.00020273,2]
[388591216,1759246329856,-500.0,0.00020273,2]
[388591217,1759246329866,-578.92,0.00020273,2]
[388591218,1759246329877,-1334.66,0.00020273,2]
[388591219,1759246329887,-419.41,0.00020273,2]